[Event "Titled Tuesday Blitz July 25 Late 2023"]
[White "Pranav, V"]
[Black "Sivakumar, Shaaketh"]
[WhiteFideId "25060783"]
[BlackFideId "30940176"]
[WhiteElo "3009"]
[BlackElo "2581"]
[Result "1-0"]
[Round "2"]
[TimeControl "180+2"]
[Date "2023.07.25"]
[WhiteClock "0:00:38"]
[BlackClock "0:00:44"]
[Board "16"]

1. e4 {[%clk 0:03:00]}  e6 {[%clk 0:03:00]} 2. d4 {[%clk 0:03:00]}  d5 {[%clk 0:03:00]} 3. Nc3 {[%clk 0:03:00]}  Bb4 {[%clk 0:03:00]} 4. e5 {[%clk 0:02:58]}  Ne7 {[%clk 0:03:00]} 5. Bd2 {[%clk 0:02:58]}  b6 {[%clk 0:02:59]} 6. Qg4 {[%clk 0:02:55]}  O-O {[%clk 0:02:55]} 7. Bd3 {[%clk 0:02:54]}  c5 {[%clk 0:02:55]} 8. a3 {[%clk 0:02:53]}  Bxc3 {[%clk 0:02:51]} 9. Bxc3 {[%clk 0:02:54]}  Ba6 {[%clk 0:02:50]} 10. Bxa6 {[%clk 0:02:48]}  Nxa6 {[%clk 0:02:51]} 11. h4 {[%clk 0:02:46]}  Rb8 {[%clk 0:02:47]} 12. h5 {[%clk 0:02:44]}  h6 {[%clk 0:02:47]} 13. Ne2 {[%clk 0:02:44]}  Rc8 {[%clk 0:02:47]} 14. Rh3 {[%clk 0:02:40]}  Nf5 {[%clk 0:02:41]} 15. Rd1 {[%clk 0:02:37]}  Qg5 {[%clk 0:02:34]} 16. Qxg5 {[%clk 0:02:20]}  hxg5 {[%clk 0:02:34]} 17. g4 {[%clk 0:02:07]}  Ne7 {[%clk 0:02:31]} 18. Bd2 {[%clk 0:02:00]}  f6 {[%clk 0:02:31]} 19. h6 {[%clk 0:01:57]}  cxd4 {[%clk 0:02:19]} 20. hxg7 {[%clk 0:01:52]}  Kxg7 {[%clk 0:02:19]} 21. Nxd4 {[%clk 0:01:52]}  Nc7 {[%clk 0:02:11]} 22. exf6+ {[%clk 0:01:43]}  Kxf6 {[%clk 0:02:12]} 23. Nf3 {[%clk 0:01:43]}  Rg8 {[%clk 0:02:00]} 24. Bc3+ {[%clk 0:01:38]}  Kf7 {[%clk 0:01:56]} 25. Rh7+ {[%clk 0:01:37]}  Ke8 {[%clk 0:01:45]} 26. Bf6 {[%clk 0:01:37]}  Nc6 {[%clk 0:01:33]} 27. Bxg5 {[%clk 0:01:24]}  e5 {[%clk 0:01:31]} 28. Rh5 {[%clk 0:01:17]}  Ne6 {[%clk 0:01:29]} 29. Bf6 {[%clk 0:01:11]}  Rxg4 {[%clk 0:01:23]} 30. Rxd5 {[%clk 0:00:57]}  e4 {[%clk 0:01:12]} 31. Rh8+ {[%clk 0:00:53]}  Nf8 {[%clk 0:01:12]} 32. Ng5 {[%clk 0:00:48]}  Rf4 {[%clk 0:01:01]} 33. Rd6 {[%clk 0:00:41]}  Ne7 {[%clk 0:00:54]} 34. Rxf8+ {[%clk 0:00:39]}  Kxf8 {[%clk 0:00:51]} 35. Ne6+ {[%clk 0:00:39]}  Kf7 {[%clk 0:00:52]} 36. Nxf4 {[%clk 0:00:40]}  Nf5 {[%clk 0:00:52]} 37. Re6 {[%clk 0:00:40]}  Rxc2 {[%clk 0:00:51]} 38. Bc3 {[%clk 0:00:39]}  Rc1+ {[%clk 0:00:46]} 39. Kd2 {[%clk 0:00:38]}  Rf1 {[%clk 0:00:44]} 40. Rf6+ {[%clk 0:00:38]} 1-0


[Site "https://www.chess.com"]

[Event "Titled Tuesday Blitz July 25 Late 2023"]
[White "Sargsyan, Shant"]
[Black "Vovk, Orest"]
[WhiteFideId "13306766"]
[BlackFideId "14113490"]
[WhiteElo "2991"]
[BlackElo "2574"]
[Result "1-0"]
[Round "2"]
[TimeControl "180+2"]
[Date "2023.07.25"]
[WhiteClock "0:01:33"]
[BlackClock "0:00:00"]
[Board "19"]

1. c4 {[%clk 0:03:00]}  g5 {[%clk 0:02:56]} 2. d4 {[%clk 0:02:59]}  h6 {[%clk 0:02:54]} 3. Nc3 {[%clk 0:02:58]}  Bg7 {[%clk 0:02:54]} 4. h4 {[%clk 0:02:59]}  c5 {[%clk 0:02:54]} 5. dxc5 {[%clk 0:02:56]}  Bxc3+ {[%clk 0:02:53]} 6. bxc3 {[%clk 0:02:56]}  Qa5 {[%clk 0:02:53]} 7. hxg5 {[%clk 0:02:54]}  hxg5 {[%clk 0:02:53]} 8. Rxh8 {[%clk 0:02:48]}  Qxc3+ {[%clk 0:02:53]} 9. Qd2 {[%clk 0:02:48]}  Qxh8 {[%clk 0:02:53]} 10. Bb2 {[%clk 0:02:49]}  Qh5 {[%clk 0:02:40]} 11. Nf3 {[%clk 0:02:48]}  g4 {[%clk 0:02:34]} 12. Nd4 {[%clk 0:02:47]}  g3 {[%clk 0:02:20]} 13. fxg3 {[%clk 0:02:45]}  Qxc5 {[%clk 0:02:16]} 14. Qf4 {[%clk 0:02:45]}  d6 {[%clk 0:02:10]} 15. O-O-O {[%clk 0:02:33]}  Nc6 {[%clk 0:01:59]} 16. Nb3 {[%clk 0:02:30]}  Qf5 {[%clk 0:01:56]} 17. e4 {[%clk 0:02:31]}  Qxf4+ {[%clk 0:01:52]} 18. gxf4 {[%clk 0:02:31]}  Bg4 {[%clk 0:01:52]} 19. Rd3 {[%clk 0:02:28]}  O-O-O {[%clk 0:01:45]} 20. c5 {[%clk 0:02:25]}  dxc5 {[%clk 0:01:36]} 21. Rxd8+ {[%clk 0:02:26]}  Nxd8 {[%clk 0:01:34]} 22. Nxc5 {[%clk 0:02:27]}  Ne6 {[%clk 0:01:18]} 23. Nd3 {[%clk 0:02:27]}  f5 {[%clk 0:01:02]} 24. exf5 {[%clk 0:02:12]}  Bxf5 {[%clk 0:01:01]} 25. g3 {[%clk 0:02:12]}  Nf6 {[%clk 0:00:57]} 26. Nf2 {[%clk 0:02:09]}  Nc5 {[%clk 0:00:30]} 27. Be2 {[%clk 0:02:04]}  Nce4 {[%clk 0:00:18]} 28. Nxe4 {[%clk 0:02:03]}  Bxe4 {[%clk 0:00:12]} 29. g4 {[%clk 0:02:04]}  Nd5 {[%clk 0:00:11]} 30. Be5 {[%clk 0:01:56]}  Kd7 {[%clk 0:00:10]} 31. Kd2 {[%clk 0:01:56]}  a6 {[%clk 0:00:10]} 32. f5 {[%clk 0:01:51]}  e6 {[%clk 0:00:08]} 33. f6 {[%clk 0:01:50]}  Bg6 {[%clk 0:00:08]} 34. g5 {[%clk 0:01:49]}  b5 {[%clk 0:00:08]} 35. Bg4 {[%clk 0:01:45]}  Bf7 {[%clk 0:00:05]} 36. Bf3 {[%clk 0:01:42]}  Bg6 {[%clk 0:00:05]} 37. Bd1 {[%clk 0:01:42]}  a5 {[%clk 0:00:04]} 38. Be2 {[%clk 0:01:42]}  b4 {[%clk 0:00:03]} 39. Bb5+ {[%clk 0:01:42]}  Kd8 {[%clk 0:00:03]} 40. Bd6 {[%clk 0:01:35]}  Bh7 {[%clk 0:00:00]} 41. f7 {[%clk 0:01:33]} 1-0


[Site "https://www.chess.com"]

[Event "Titled Tuesday Blitz July 25 Late 2023"]
[White "Pham, Le Thao Nguyen"]
[Black "He, Anthony"]
[WhiteFideId "12401226"]
[BlackFideId "2088215"]
[WhiteElo "2571"]
[BlackElo "2987"]
[Result "0-1"]
[Round "2"]
[TimeControl "180+2"]
[Date "2023.07.25"]
[WhiteClock "0:00:01"]
[BlackClock "0:00:24"]
[Board "20"]

1. d4 {[%clk 0:03:00]}  d5 {[%clk 0:02:59]} 2. c4 {[%clk 0:02:58]}  e6 {[%clk 0:02:58]} 3. Nf3 {[%clk 0:02:57]}  Nf6 {[%clk 0:02:59]} 4. g3 {[%clk 0:02:58]}  dxc4 {[%clk 0:02:59]} 5. Bg2 {[%clk 0:02:57]}  c6 {[%clk 0:02:58]} 6. O-O {[%clk 0:02:48]}  a5 {[%clk 0:02:52]} 7. Ne5 {[%clk 0:02:19]}  Be7 {[%clk 0:02:52]} 8. Nxc4 {[%clk 0:02:16]}  b5 {[%clk 0:02:52]} 9. Ne5 {[%clk 0:02:11]}  Bb7 {[%clk 0:02:52]} 10. a4 {[%clk 0:02:08]}  Qb6 {[%clk 0:02:44]} 11. Bg5 {[%clk 0:01:43]}  O-O {[%clk 0:02:43]} 12. Na3 {[%clk 0:01:39]}  Rd8 {[%clk 0:02:42]} 13. e3 {[%clk 0:01:38]}  Na6 {[%clk 0:02:38]} 14. Qb3 {[%clk 0:01:30]}  Nb4 {[%clk 0:02:31]} 15. Rac1 {[%clk 0:01:25]}  h6 {[%clk 0:02:28]} 16. Bxf6 {[%clk 0:01:21]}  Bxf6 {[%clk 0:02:29]} 17. Rc5 {[%clk 0:00:57]}  Be7 {[%clk 0:02:09]} 18. Rcc1 {[%clk 0:00:47]}  Rac8 {[%clk 0:02:08]} 19. Rfd1 {[%clk 0:00:44]}  Bd6 {[%clk 0:01:58]} 20. Nd3 {[%clk 0:00:41]}  bxa4 {[%clk 0:01:36]} 21. Qxa4 {[%clk 0:00:34]}  Ba6 {[%clk 0:01:20]} 22. Nc5 {[%clk 0:00:30]}  Bb5 {[%clk 0:01:18]} 23. Nc4 {[%clk 0:00:24]}  Bxa4 {[%clk 0:00:48]} 24. Nxb6 {[%clk 0:00:23]}  Bxd1 {[%clk 0:00:48]} 25. Nxc8 {[%clk 0:00:23]}  Rxc8 {[%clk 0:00:47]} 26. Rxd1 {[%clk 0:00:22]}  Rb8 {[%clk 0:00:47]} 27. Ra1 {[%clk 0:00:18]}  Bxc5 {[%clk 0:00:46]} 28. dxc5 {[%clk 0:00:18]}  Rb5 {[%clk 0:00:47]} 29. Rd1 {[%clk 0:00:16]}  Rxc5 {[%clk 0:00:46]} 30. Rd8+ {[%clk 0:00:16]}  Kh7 {[%clk 0:00:46]} 31. Rd7 {[%clk 0:00:16]}  Kg6 {[%clk 0:00:46]} 32. h4 {[%clk 0:00:16]}  Kf6 {[%clk 0:00:46]} 33. Ra7 {[%clk 0:00:15]}  Nd3 {[%clk 0:00:45]} 34. b3 {[%clk 0:00:14]}  Nc1 {[%clk 0:00:45]} 35. Ra6 {[%clk 0:00:12]}  Nxb3 {[%clk 0:00:45]} 36. Bxc6 {[%clk 0:00:12]}  h5 {[%clk 0:00:37]} 37. Kg2 {[%clk 0:00:12]}  Nc1 {[%clk 0:00:36]} 38. Ba4 {[%clk 0:00:12]}  Nd3 {[%clk 0:00:35]} 39. Ra7 {[%clk 0:00:12]}  Ne5 {[%clk 0:00:31]} 40. Be8 {[%clk 0:00:10]}  Rc8 {[%clk 0:00:31]} 41. Ba4 {[%clk 0:00:10]}  Rc5 {[%clk 0:00:27]} 42. Be8 {[%clk 0:00:09]}  Rc2 {[%clk 0:00:27]} 43. Bb5 {[%clk 0:00:05]}  Ng4 {[%clk 0:00:26]} 44. Rxa5 {[%clk 0:00:04]}  Rxf2+ {[%clk 0:00:27]} 45. Kg1 {[%clk 0:00:04]}  Rf3 {[%clk 0:00:27]} 46. e4 {[%clk 0:00:04]}  Rxg3+ {[%clk 0:00:27]} 47. Kf1 {[%clk 0:00:05]}  Rh3 {[%clk 0:00:25]} 48. Bc6 {[%clk 0:00:05]}  Rxh4 {[%clk 0:00:25]} 49. Ra7 {[%clk 0:00:05]}  Ne5 {[%clk 0:00:24]} 50. Be8 {[%clk 0:00:01]}  Rxe4 {[%clk 0:00:24]} 0-1


[Site "https://www.chess.com"]

[Event "Titled Tuesday Blitz July 25 Late 2023"]
[White "Vlassov, Nikolai"]
[Black "Indjic, Aleksandar"]
[WhiteFideId "4103360"]
[BlackFideId "911925"]
[WhiteElo "2564"]
[BlackElo "2975"]
[Result "1/2-1/2"]
[Round "2"]
[TimeControl "180+2"]
[Date "2023.07.25"]
[WhiteClock "0:00:06"]
[BlackClock "0:00:23"]
[Board "24"]

1. e4 {[%clk 0:03:00]}  e5 {[%clk 0:02:55]} 2. Bc4 {[%clk 0:03:00]}  Nc6 {[%clk 0:02:54]} 3. f4 {[%clk 0:02:59]}  Nf6 {[%clk 0:02:44]} 4. Nc3 {[%clk 0:02:59]}  Nxe4 {[%clk 0:02:37]} 5. Nf3 {[%clk 0:02:56]}  Nd6 {[%clk 0:02:22]} 6. Bb3 {[%clk 0:02:56]}  e4 {[%clk 0:02:19]} 7. Ng5 {[%clk 0:02:53]}  Nd4 {[%clk 0:02:13]} 8. O-O {[%clk 0:02:37]}  Nxb3 {[%clk 0:02:12]} 9. axb3 {[%clk 0:02:37]}  Be7 {[%clk 0:02:11]} 10. d3 {[%clk 0:02:08]}  e3 {[%clk 0:02:08]} 11. Bxe3 {[%clk 0:02:07]}  h6 {[%clk 0:02:08]} 12. Nf3 {[%clk 0:01:55]}  Nf5 {[%clk 0:02:07]} 13. Bf2 {[%clk 0:01:54]}  d5 {[%clk 0:02:07]} 14. Ne2 {[%clk 0:01:46]}  O-O {[%clk 0:02:04]} 15. Qd2 {[%clk 0:01:33]}  b6 {[%clk 0:01:53]} 16. Ned4 {[%clk 0:01:27]}  Nxd4 {[%clk 0:01:52]} 17. Nxd4 {[%clk 0:01:27]}  Qd7 {[%clk 0:01:51]} 18. b4 {[%clk 0:01:20]}  c5 {[%clk 0:01:50]} 19. bxc5 {[%clk 0:01:19]}  bxc5 {[%clk 0:01:49]} 20. Nb3 {[%clk 0:01:18]}  d4 {[%clk 0:01:49]} 21. Ra5 {[%clk 0:01:12]}  Qc6 {[%clk 0:01:46]} 22. Bg3 {[%clk 0:01:03]}  Bb7 {[%clk 0:01:44]} 23. f5 {[%clk 0:01:02]}  Bg5 {[%clk 0:01:37]} 24. Bf4 {[%clk 0:01:02]}  c4 {[%clk 0:01:32]} 25. dxc4 {[%clk 0:00:47]}  Bxf4 {[%clk 0:01:26]} 26. Rxf4 {[%clk 0:00:47]}  d3 {[%clk 0:01:26]} 27. cxd3 {[%clk 0:00:36]}  Rad8 {[%clk 0:01:22]} 28. Nc5 {[%clk 0:00:20]}  Ba8 {[%clk 0:01:20]} 29. b4 {[%clk 0:00:20]}  Rfe8 {[%clk 0:01:15]} 30. f6 {[%clk 0:00:19]}  Re1+ {[%clk 0:01:08]} 31. Kf2 {[%clk 0:00:18]}  Rde8 {[%clk 0:00:54]} 32. Ne4 {[%clk 0:00:17]}  Rh1 {[%clk 0:00:51]} 33. fxg7 {[%clk 0:00:15]}  Qg6 {[%clk 0:00:50]} 34. Nf6+ {[%clk 0:00:15]}  Kxg7 {[%clk 0:00:50]} 35. Nxe8+ {[%clk 0:00:15]}  Kf8 {[%clk 0:00:50]} 36. Ke3 {[%clk 0:00:07]}  Qe6+ {[%clk 0:00:45]} 37. Kd4 {[%clk 0:00:08]}  Qxe8 {[%clk 0:00:35]} 38. Kc3 {[%clk 0:00:08]}  Re1 {[%clk 0:00:33]} 39. Rxa7 {[%clk 0:00:07]}  Qe5+ {[%clk 0:00:28]} 40. Kc2 {[%clk 0:00:07]}  Re2 {[%clk 0:00:24]} 41. Raxf7+ {[%clk 0:00:07]}  Kg8 {[%clk 0:00:23]} 42. Rf8+ {[%clk 0:00:08]}  Kg7 {[%clk 0:00:24]} 43. R4f7+ {[%clk 0:00:08]}  Kg6 {[%clk 0:00:24]} 44. Rf6+ {[%clk 0:00:08]}  Kg7 {[%clk 0:00:24]} 45. R6f7+ {[%clk 0:00:09]}  Kg6 {[%clk 0:00:24]} 46. Rf6+ {[%clk 0:00:09]}  Kg7 {[%clk 0:00:23]} 47. R8f7+ {[%clk 0:00:09]}  Kg8 {[%clk 0:00:23]} 48. Rf8+ {[%clk 0:00:06]}  Kg7 {[%clk 0:00:23]} 1/2-1/2


[Site "https://www.chess.com"]

[Event "Titled Tuesday Blitz July 25 Late 2023"]
[White "Horobetz, Graham"]
[Black "Svane, Rasmus"]
[WhiteFideId "2047322"]
[BlackFideId "4657101"]
[WhiteElo "2557"]
[BlackElo "2974"]
[Result "0-1"]
[Round "2"]
[TimeControl "180+2"]
[Date "2023.07.25"]
[WhiteClock "0:00:01"]
[BlackClock "0:00:26"]
[Board "26"]

1. e4 {[%clk 0:03:00]}  c6 {[%clk 0:02:58]} 2. d4 {[%clk 0:03:00]}  d5 {[%clk 0:02:59]} 3. Nc3 {[%clk 0:03:00]}  dxe4 {[%clk 0:02:59]} 4. Nxe4 {[%clk 0:03:01]}  Nf6 {[%clk 0:03:00]} 5. Nxf6+ {[%clk 0:03:02]}  exf6 {[%clk 0:03:01]} 6. c3 {[%clk 0:03:02]}  Bd6 {[%clk 0:03:02]} 7. Bd3 {[%clk 0:03:03]}  O-O {[%clk 0:03:02]} 8. Qc2 {[%clk 0:03:04]}  Re8+ {[%clk 0:03:03]} 9. Ne2 {[%clk 0:03:05]}  h5 {[%clk 0:03:04]} 10. O-O {[%clk 0:03:05]}  h4 {[%clk 0:03:04]} 11. h3 {[%clk 0:03:06]}  Nd7 {[%clk 0:03:04]} 12. Bd2 {[%clk 0:03:06]}  Nf8 {[%clk 0:03:04]} 13. Rae1 {[%clk 0:03:07]}  Be6 {[%clk 0:03:04]} 14. f4 {[%clk 0:03:07]}  Bd7 {[%clk 0:02:59]} 15. f5 {[%clk 0:03:06]}  Nh7 {[%clk 0:02:59]} 16. Nf4 {[%clk 0:03:00]}  Qc7 {[%clk 0:02:54]} 17. Nh5 {[%clk 0:02:59]}  Bg3 {[%clk 0:02:25]} 18. Rxe8+ {[%clk 0:02:57]}  Rxe8 {[%clk 0:02:25]} 19. Qd1 {[%clk 0:02:58]}  Kh8 {[%clk 0:02:05]} 20. Qg4 {[%clk 0:02:57]}  Bh2+ {[%clk 0:01:55]} 21. Kh1 {[%clk 0:02:57]}  g5 {[%clk 0:01:55]} 22. Nxf6 {[%clk 0:02:53]}  Nxf6 {[%clk 0:01:52]} 23. Qxg5 {[%clk 0:02:53]}  Nh7 {[%clk 0:01:44]} 24. Qxh4 {[%clk 0:02:48]}  Qg3 {[%clk 0:01:44]} 25. Qxg3 {[%clk 0:02:00]}  Bxg3 {[%clk 0:01:45]} 26. Rf3 {[%clk 0:01:59]}  Bh4 {[%clk 0:01:41]} 27. Bf4 {[%clk 0:01:53]}  Bg5 {[%clk 0:01:36]} 28. Be5+ {[%clk 0:01:52]}  f6 {[%clk 0:01:31]} 29. Bg3 {[%clk 0:01:47]}  Re3 {[%clk 0:01:31]} 30. Rxe3 {[%clk 0:01:43]}  Bxe3 {[%clk 0:01:32]} 31. Be1 {[%clk 0:01:24]}  Ng5 {[%clk 0:01:18]} 32. h4 {[%clk 0:01:17]}  Nf7 {[%clk 0:01:18]} 33. g4 {[%clk 0:01:16]}  c5 {[%clk 0:01:19]} 34. dxc5 {[%clk 0:01:10]}  Bc6+ {[%clk 0:01:19]} 35. Kh2 {[%clk 0:01:10]}  Ne5 {[%clk 0:01:20]} 36. Be2 {[%clk 0:01:09]}  Bxc5 {[%clk 0:01:17]} 37. Kg3 {[%clk 0:01:07]}  Bd6 {[%clk 0:01:17]} 38. Kf2 {[%clk 0:01:07]}  Bc5+ {[%clk 0:01:14]} 39. Kg3 {[%clk 0:01:06]}  Bd6 {[%clk 0:01:12]} 40. Kf2 {[%clk 0:01:06]}  Kg7 {[%clk 0:01:03]} 41. Bd2 {[%clk 0:01:05]}  Bd5 {[%clk 0:00:55]} 42. b3 {[%clk 0:01:03]}  Be4 {[%clk 0:00:56]} 43. Be3 {[%clk 0:00:55]}  a6 {[%clk 0:00:55]} 44. b4 {[%clk 0:00:43]}  Nd3+ {[%clk 0:00:54]} 45. Bxd3 {[%clk 0:00:39]}  Bxd3 {[%clk 0:00:55]} 46. Bd4 {[%clk 0:00:39]}  Kf7 {[%clk 0:00:47]} 47. a3 {[%clk 0:00:35]}  Bc2 {[%clk 0:00:36]} 48. Kf3 {[%clk 0:00:34]}  Bd1+ {[%clk 0:00:36]} 49. Ke4 {[%clk 0:00:29]}  Bxg4 {[%clk 0:00:36]} 50. c4 {[%clk 0:00:23]}  Bh3 {[%clk 0:00:33]} 51. c5 {[%clk 0:00:14]}  Bg2+ {[%clk 0:00:32]} 52. Ke3 {[%clk 0:00:14]}  Bc7 {[%clk 0:00:31]} 53. a4 {[%clk 0:00:13]}  Bc6 {[%clk 0:00:30]} 54. b5 {[%clk 0:00:12]}  axb5 {[%clk 0:00:30]} 55. axb5 {[%clk 0:00:13]}  Bxb5 {[%clk 0:00:31]} 56. Kf3 {[%clk 0:00:11]}  Be5 {[%clk 0:00:27]} 57. Be3 {[%clk 0:00:07]}  Kg7 {[%clk 0:00:27]} 58. h5 {[%clk 0:00:05]}  Ba4 {[%clk 0:00:27]} 59. Kg4 {[%clk 0:00:05]}  Bd1+ {[%clk 0:00:26]} 60. Kh4 {[%clk 0:00:05]}  Bc3 {[%clk 0:00:26]} 61. Bf2 {[%clk 0:00:06]}  Bd2 {[%clk 0:00:25]} 62. Bg3 {[%clk 0:00:03]}  Bg5+ {[%clk 0:00:25]} 63. Kh3 {[%clk 0:00:01]}  Bxh5 {[%clk 0:00:26]} 0-1


[Site "https://www.chess.com"]

[Event "Titled Tuesday Blitz July 25 Late 2023"]
[White "Tari, Aryan"]
[Black "Feng, Eric"]
[WhiteFideId "1510045"]
[BlackFideId "30952590"]
[WhiteElo "2942"]
[BlackElo "2556"]
[Result "1-0"]
[Round "2"]
[TimeControl "180+2"]
[Date "2023.07.25"]
[WhiteClock "0:00:13"]
[BlackClock "0:00:24"]
[Board "27"]

1. d4 {[%clk 0:02:45]}  Nf6 {[%clk 0:02:59]} 2. c4 {[%clk 0:02:45]}  e6 {[%clk 0:02:59]} 3. Nf3 {[%clk 0:02:45]}  b6 {[%clk 0:02:58]} 4. g3 {[%clk 0:02:45]}  Bb7 {[%clk 0:02:59]} 5. Bg2 {[%clk 0:02:45]}  Be7 {[%clk 0:02:59]} 6. O-O {[%clk 0:02:45]}  O-O {[%clk 0:03:00]} 7. Re1 {[%clk 0:02:37]}  d6 {[%clk 0:02:55]} 8. Nc3 {[%clk 0:02:35]}  Ne4 {[%clk 0:02:55]} 9. Qc2 {[%clk 0:02:34]}  Nxc3 {[%clk 0:02:51]} 10. bxc3 {[%clk 0:02:16]}  Nd7 {[%clk 0:02:49]} 11. e4 {[%clk 0:02:12]}  c5 {[%clk 0:02:36]} 12. d5 {[%clk 0:02:12]}  e5 {[%clk 0:02:33]} 13. a4 {[%clk 0:02:08]}  Ba6 {[%clk 0:02:30]} 14. Qe2 {[%clk 0:02:02]}  g6 {[%clk 0:02:25]} 15. h4 {[%clk 0:01:59]}  Bf6 {[%clk 0:02:23]} 16. h5 {[%clk 0:01:55]}  Bg7 {[%clk 0:02:23]} 17. hxg6 {[%clk 0:01:55]}  hxg6 {[%clk 0:02:23]} 18. Bh3 {[%clk 0:01:52]}  Nf6 {[%clk 0:02:14]} 19. Kg2 {[%clk 0:01:51]}  Bc8 {[%clk 0:02:11]} 20. Rh1 {[%clk 0:01:51]}  Bxh3+ {[%clk 0:02:10]} 21. Rxh3 {[%clk 0:01:52]}  Qd7 {[%clk 0:02:10]} 22. Bh6 {[%clk 0:01:42]}  Bxh6 {[%clk 0:02:11]} 23. Rxh6 {[%clk 0:01:42]}  Kg7 {[%clk 0:02:11]} 24. Rhh1 {[%clk 0:01:28]}  Rh8 {[%clk 0:02:11]} 25. Qe3 {[%clk 0:01:19]}  Ng4 {[%clk 0:01:59]} 26. Qg5 {[%clk 0:01:09]}  f6 {[%clk 0:01:59]} 27. Qd2 {[%clk 0:01:09]}  Rxh1 {[%clk 0:01:58]} 28. Rxh1 {[%clk 0:01:09]}  Rh8 {[%clk 0:01:46]} 29. Rxh8 {[%clk 0:01:04]}  Kxh8 {[%clk 0:01:47]} 30. Nh2 {[%clk 0:01:00]}  Kg7 {[%clk 0:01:44]} 31. Qd1 {[%clk 0:00:50]}  Nxh2 {[%clk 0:01:43]} 32. Kxh2 {[%clk 0:00:51]}  Qe8 {[%clk 0:01:40]} 33. Kg2 {[%clk 0:00:50]}  Qh8 {[%clk 0:01:39]} 34. Qg4 {[%clk 0:00:50]}  Qe8 {[%clk 0:01:38]} 35. Qd1 {[%clk 0:00:50]}  Qh8 {[%clk 0:01:37]} 36. a5 {[%clk 0:00:49]}  bxa5 {[%clk 0:01:36]} 37. Qa4 {[%clk 0:00:50]}  Qd8 {[%clk 0:01:35]} 38. Qc6 {[%clk 0:00:47]}  Qb6 {[%clk 0:01:33]} 39. Qd7+ {[%clk 0:00:48]}  Kh6 {[%clk 0:01:33]} 40. Qe7 {[%clk 0:00:40]}  a4 {[%clk 0:01:27]} 41. Qf8+ {[%clk 0:00:37]}  Kh7 {[%clk 0:01:27]} 42. Qf7+ {[%clk 0:00:37]}  Kh6 {[%clk 0:01:27]} 43. Qxf6 {[%clk 0:00:32]}  Qb8 {[%clk 0:01:25]} 44. Qh4+ {[%clk 0:00:30]}  Kg7 {[%clk 0:01:25]} 45. Qe7+ {[%clk 0:00:30]}  Kh6 {[%clk 0:01:25]} 46. g4 {[%clk 0:00:26]}  a3 {[%clk 0:01:18]} 47. Kg3 {[%clk 0:00:17]}  g5 {[%clk 0:01:16]} 48. Qf6+ {[%clk 0:00:17]}  Kh7 {[%clk 0:01:16]} 49. Qf7+ {[%clk 0:00:17]}  Kh8 {[%clk 0:01:13]} 50. Qh5+ {[%clk 0:00:17]}  Kg7 {[%clk 0:01:14]} 51. Qxg5+ {[%clk 0:00:18]}  Kf7 {[%clk 0:01:14]} 52. Qf5+ {[%clk 0:00:18]}  Kg7 {[%clk 0:01:15]} 53. Qd7+ {[%clk 0:00:18]}  Kg8 {[%clk 0:01:13]} 54. Qa4 {[%clk 0:00:17]}  Qb2 {[%clk 0:01:12]} 55. Qe8+ {[%clk 0:00:16]}  Kg7 {[%clk 0:01:12]} 56. Qe7+ {[%clk 0:00:17]}  Kg8 {[%clk 0:01:12]} 57. Qd8+ {[%clk 0:00:17]}  Kg7 {[%clk 0:01:13]} 58. Qg5+ {[%clk 0:00:18]}  Kf7 {[%clk 0:01:13]} 59. Qf5+ {[%clk 0:00:18]}  Kg7 {[%clk 0:01:13]} 60. g5 {[%clk 0:00:15]}  a2 {[%clk 0:01:11]} 61. Qf6+ {[%clk 0:00:15]}  Kg8 {[%clk 0:01:10]} 62. Qd8+ {[%clk 0:00:15]}  Kg7 {[%clk 0:01:08]} 63. Qe7+ {[%clk 0:00:16]}  Kg8 {[%clk 0:01:08]} 64. g6 {[%clk 0:00:15]}  Qxc3+ {[%clk 0:00:24]} 65. Kg4 {[%clk 0:00:13]} 1-0


[Site "https://www.chess.com"]

[Event "Titled Tuesday Blitz July 25 Late 2023"]
[White "Richter, Paul"]
[Black "Kamsky, Gata"]
[WhiteFideId "2046350"]
[BlackFideId "2000024"]
[WhiteElo "2553"]
[BlackElo "2936"]
[Result "0-1"]
[Round "2"]
[TimeControl "180+2"]
[Date "2023.07.25"]
[WhiteClock "0:00:00"]
[BlackClock "0:01:22"]
[Board "28"]

1. e4 {[%clk 0:03:00]}  c5 {[%clk 0:02:53]} 2. Nf3 {[%clk 0:02:59]}  e6 {[%clk 0:02:50]} 3. d3 {[%clk 0:02:59]}  Nc6 {[%clk 0:02:43]} 4. Nbd2 {[%clk 0:03:00]}  g6 {[%clk 0:02:41]} 5. g3 {[%clk 0:03:00]}  Bg7 {[%clk 0:02:40]} 6. Bg2 {[%clk 0:03:00]}  d6 {[%clk 0:02:39]} 7. O-O {[%clk 0:03:01]}  Nge7 {[%clk 0:02:38]} 8. a4 {[%clk 0:03:01]}  O-O {[%clk 0:02:37]} 9. Re1 {[%clk 0:03:00]}  Rb8 {[%clk 0:02:35]} 10. c3 {[%clk 0:02:59]}  a6 {[%clk 0:02:34]} 11. Qc2 {[%clk 0:02:57]}  b5 {[%clk 0:02:34]} 12. axb5 {[%clk 0:02:58]}  axb5 {[%clk 0:02:33]} 13. h4 {[%clk 0:02:59]}  h6 {[%clk 0:02:32]} 14. Nf1 {[%clk 0:02:37]}  e5 {[%clk 0:02:24]} 15. Ne3 {[%clk 0:02:29]}  f5 {[%clk 0:02:23]} 16. Nd5 {[%clk 0:02:18]}  Nxd5 {[%clk 0:02:17]} 17. exd5 {[%clk 0:02:19]}  Ne7 {[%clk 0:02:17]} 18. Nd2 {[%clk 0:02:09]}  Bb7 {[%clk 0:02:15]} 19. c4 {[%clk 0:02:05]}  bxc4 {[%clk 0:02:15]} 20. dxc4 {[%clk 0:02:06]}  e4 {[%clk 0:02:07]} 21. Rb1 {[%clk 0:01:44]}  Bc8 {[%clk 0:02:03]} 22. b3 {[%clk 0:01:34]}  Ra8 {[%clk 0:01:59]} 23. f3 {[%clk 0:01:09]}  Bd4+ {[%clk 0:01:57]} 24. Kh2 {[%clk 0:01:07]}  e3 {[%clk 0:01:57]} 25. Nf1 {[%clk 0:01:04]}  f4 {[%clk 0:01:57]} 26. g4 {[%clk 0:00:57]}  h5 {[%clk 0:01:56]} 27. Bb2 {[%clk 0:00:32]}  Ra2 {[%clk 0:01:52]} 28. b4 {[%clk 0:00:28]}  Nf5 {[%clk 0:01:50]} 29. g5 {[%clk 0:00:27]}  Nxh4 {[%clk 0:01:48]} 30. Re2 {[%clk 0:00:23]}  Qxg5 {[%clk 0:01:45]} 31. Qb3 {[%clk 0:00:17]}  Rxb2 {[%clk 0:01:43]} 32. Rbxb2 {[%clk 0:00:17]}  cxb4 {[%clk 0:01:42]} 33. Qxb4 {[%clk 0:00:15]}  Bc5 {[%clk 0:01:41]} 34. Qc3 {[%clk 0:00:14]}  Nf5 {[%clk 0:01:38]} 35. Rb8 {[%clk 0:00:11]}  Nd4 {[%clk 0:01:24]} 36. Qd3 {[%clk 0:00:07]}  Bf5 {[%clk 0:01:22]} 37. Rxf8+ {[%clk 0:00:06]}  Kxf8 {[%clk 0:01:22]} 38. Qd1 {[%clk 0:00:05]}  Qh4+ {[%clk 0:01:22]} 39. Kg1 {[%clk 0:00:04]}  Nxe2+ {[%clk 0:01:22]} 40. Qxe2 {[%clk 0:00:00]}  Bd3 {[%clk 0:01:22]} 0-1


[Site "https://www.chess.com"]